Workbook

Sheet Variante 1
A1: Bauteile ohne rechnerisch erforderliche Querkraftbewehrung nach EN 1992-1-1:2004 und DIN EN 1992-1-1/NA:2013-04
A2: Betonfestigkeitsklasse: | C2: C20/25 | J2: Werstoffkennwerte für Beton in [N/mm2]
B3: αct = | C3: =m_alct -> 0.85 | D3: [-] | J3: αct = | K3: 0.85
B4: γc = | C4: =m_gammac -> 1.5 | D4: [-] | J4: γc = | K4: 1.5
B5: fck = | C5: =VLOOKUP(m_strfck,Werkstoffkennwerte,2,FALSE) -> 20 | D5: [N/mm2] | K5: fck | L5: fck,cube | M5: fcm | N5: fcd | O5: fctm | P5: fctd | Q5: Ecm | R5: ρw,min [‰]
B6: fcd = | C6: =VLOOKUP(m_strfck,Werkstoffkennwerte,5,FALSE) -> 11.33333333 | D6: [N/mm2] | J6: C12/15 | K6: 12 | L6: 15 | M6: =K6+8 -> 20 | N6: =m_alct*K6/m_gammac -> 6.8 | O6: =POWER(K6,2/3)*0.3 -> 1.572444837 | P6: =0.7*O6*m_alct/m_gammac -> 0.6237364518 | Q6: 27000 | R6: =0.16*O6/500*1000 -> 0.5031823477
B7: VEd = | C7: 75 | D7: [kN] | J7: C16/20 | K7: 16 | L7: 20 | M7: =K7+8 -> 24 | N7: 9.066666667 | O7: =POWER(K7,2/3)*0.3 -> 1.904881262 | P7: 0.7556029007 | Q7: 29000 | R7: =0.16*O7/500*1000 -> 0.609562004
B8: h = | C8: 20 | D8: [cm] | J8: C20/25 | K8: 20 | L8: 25 | M8: 28 | N8: 11.33333333 | O8: 2.210418899 | P8: 0.8767994967 | Q8: 30000 | R8: 0.7073340477
B9: b = | C9: 90 | D9: [cm] | J9: C25/30 | K9: 25 | L9: 30 | M9: 33 | N9: 14.16666667 | O9: 2.56496392 | P9: 1.017435688 | Q9: 31000 | R9: 0.8207884544
A10: VRd,c = [CRdc · k · (100 · ρl · fck )1/3 + k1 · σcp] · bw · d | J10: C30/37 | K10: 30 | L10: 37 | M10: 38 | N10: 17 | O10: 2.896468154 | P10: 1.148932368 | Q10: 33000 | R10: 0.9268698092
B11: bw = | C11: 90 | D11: [cm] | J11: C35/45 | K11: 35 | L11: 45 | M11: 43 | N11: 19.83333333 | O11: 3.209962442 | P11: 1.273285102 | Q11: 34000 | R11: 1.027187981
B12: d = | C12: 19 | D12: [cm] | J12: C40/50 | K12: 40 | L12: 50 | M12: 48 | N12: 22.66666667 | O12: 3.508821286 | P12: 1.391832443 | Q12: 35000 | R12: 1.122822811
A13: CRdc = 0.15 / γc | J13: C45/55 | K13: 45 | L13: 55 | M13: 53 | N13: 25.5 | O13: 3.795446994 | P13: 1.505527308 | Q13: 36000 | R13: 1.214543038
B14: CRdc = | C14: =0.15/m_gammac -> 0.1 | D14: [-] | J14: C50/60 | K14: 50 | L14: 60 | M14: =K14+8 -> 58 | N14: =m_alct*K14/m_gammac -> 28.33333333 | O14: =POWER(K14,2/3)*0.3 -> 4.071626425 | P14: =0.7*O14*m_alct/m_gammac -> 1.615078482 | Q14: 37000 | R14: 1.302920456
A15: k = 1 + (200 / d)1/2 ≤ 2
B16: k = | C16: =MIN(1+SQRT(2000/m_d),2) -> 2 | D16: [-] | J16: Formeln für Werkstoffkennwerte
A17: ρl = Asl / (bw · d) ≤ 0,02 | J17: fcm = fck + 8 [N/mm2]
B18: Asl = | C18: 4.43 | D18: [cm2] | J18: fcd = αct · fck / γc
B19: ρl = | C19: =MIN(m_Asl/(m_bw*m_d),0.02) -> 0.002590643275 | D19: [-] | J19: fctm = 0.3 · fck2/3
B20: k1 = | C20: 0.12 | D20: [-] | J20: fctd = 0.7 · fctm · αct / γc
A21: σcp = NEd / Ac < 0,2 · fcd | J21: ρw,min = 0.16 · fctm / fyk
B22: NEd = | C22: 0 | D22: [kN]
B23: Ac = | C23: 1800 | D23: [cm2] | J23: Mindestquerkraftbewehrung min asw
B24: σcp = | C24: =MIN(m_NEd*10/m_Ac,0.2*m_fcd) -> 0 | D24: [N/mm2] | J24: ρw,min = | K24: =VLOOKUP(m_strfck,Werkstoffkennwerte,9,FALSE) -> 0.7073340477 | L24: [‰]
B25: VRd,c = | C25: =(m_CRdc*m_k*POWER(100*m_rhol*m_fck,1/3)+m_k1*m_sigmacp)/10*m_bw*m_d -> 59.17959334 | D25: [kN] | J25: b / h = | K25: =m_b/m_h -> 4.5 | L25: [-]
A26: VRd,c,min = (vmin + k1 · σcp) · bw · d | J26: min asw = ρw,min · bw · sin α
A27: vmin = κ1 / γc · (k3 · fck )1/2 | J27: min asw = | K27: =IF(m_bh<4,1,IF(m_bh>5,0,(1-(m_bh-4))))*m_rhowmin*m_bw*SIN(90*PI()/180)/10 -> 3.183003215 | L27: [cm2/m]
B28: κ1 = | C28: =IF(m_d<=60,0.0525,IF(m_d>=80,0.0375,0.0525-(m_d-60)*(0.0525-0.0375)/(80-60))) -> 0.0525 | D28: [-]
B29: vmin = | C29: =m_kappa1/m_gammac*SQRT(POWER(m_k,3)*m_fck) -> 0.4427188724 | D29: [N/mm2]
B30: VRd,c,min = | C30: =(m_vmin+m_k1*m_sigmacp)/10*m_bw*m_d -> 75.70492718 | D30: [kN]
A32: VEd ≤ VRd,c oder VEd ≤ VRd,c,min | D32: =IF(OR(m_VEd<=m_VRdc,m_VEd<=m_VRdcmin)," Nachweis wurde erfüllt!"," Nachweis wurde nicht erfüllt!") -> Nachweis wurde erfüllt!

Sheet Variante 2
A1: Bauteile ohne rechnerisch erforderliche Querkraftbewehrung nach EN 1992-1-1:2004 und DIN EN 1992-1-1/NA:2013-04
A2: Betonfestigkeitsklasse: | C2: C20/25 | J2: Werstoffkennwerte für Beton in [N/mm2]
B3: αct = | C3: =m_alct -> 0.85 | D3: [-] | J3: αct = | K3: 0.85
B4: γc = | C4: =m_gammac -> 1.5 | D4: [-] | J4: γc = | K4: 1.5
B5: fck = | C5: =VLOOKUP(m_strfck,Werkstoffkennwerte,2,FALSE) -> 20 | D5: [N/mm2] | K5: fck | L5: fck,cube | M5: fcm | N5: fcd | O5: fctm | P5: fctd | Q5: Ecm | R5: ρw,min [‰]
B6: fcd = | C6: =VLOOKUP(m_strfck,Werkstoffkennwerte,5,FALSE) -> 11.33333333 | D6: [N/mm2] | J6: C12/15 | K6: 12 | L6: 15 | M6: =K6+8 -> 20 | N6: =m_alct*K6/m_gammac -> 6.8 | O6: =POWER(K6,2/3)*0.3 -> 1.572444837 | P6: =0.7*O6*m_alct/m_gammac -> 0.6237364518 | Q6: 27000 | R6: =0.16*O6/500*1000 -> 0.5031823477
B7: fctd = | C7: =VLOOKUP(m_strfck,Werkstoffkennwerte,7,FALSE) -> 0.8767994967 | D7: [N/mm2] | J7: C16/20 | K7: 16 | L7: 20 | M7: =K7+8 -> 24 | N7: 9.066666667 | O7: =POWER(K7,2/3)*0.3 -> 1.904881262 | P7: 0.7556029007 | Q7: 29000 | R7: =0.16*O7/500*1000 -> 0.609562004
B8: VEd = | C8: 32.4 | D8: [kN] | J8: C20/25 | K8: 20 | L8: 25 | M8: 28 | N8: 11.33333333 | O8: 2.210418899 | P8: 0.8767994967 | Q8: 30000 | R8: 0.7073340477
B9: h = | C9: 18 | D9: [cm] | J9: C25/30 | K9: 25 | L9: 30 | M9: 33 | N9: 14.16666667 | O9: 2.56496392 | P9: 1.017435688 | Q9: 31000 | R9: 0.8207884544
B10: b = | C10: 100 | D10: [cm] | J10: C30/37 | K10: 30 | L10: 37 | M10: 38 | N10: 17 | O10: 2.896468154 | P10: 1.148932368 | Q10: 33000 | R10: 0.9268698092
A11: VRd,c = I · bw / S · (fctd · fctd + αl · σcp · fctd)1/2 | J11: C35/45 | K11: 35 | L11: 45 | M11: 43 | N11: 19.83333333 | O11: 3.209962442 | P11: 1.273285102 | Q11: 34000 | R11: 1.027187981
B12: I = | C12: 48600 | D12: [cm4] | J12: C40/50 | K12: 40 | L12: 50 | M12: 48 | N12: 22.66666667 | O12: 3.508821286 | P12: 1.391832443 | Q12: 35000 | R12: 1.122822811
B13: bw = | C13: 100 | D13: [cm] | J13: C45/55 | K13: 45 | L13: 55 | M13: 53 | N13: 25.5 | O13: 3.795446994 | P13: 1.505527308 | Q13: 36000 | R13: 1.214543038
B14: S = | C14: 4050 | D14: [cm3] | J14: C50/60 | K14: 50 | L14: 60 | M14: =K14+8 -> 58 | N14: =m_alct*K14/m_gammac -> 28.33333333 | O14: =POWER(K14,2/3)*0.3 -> 4.071626425 | P14: =0.7*O14*m_alct/m_gammac -> 1.615078482 | Q14: 37000 | R14: 1.302920456
A15: αl = lx / lpt2 ≤ 1,0
B16: lx = | C16: 1 | D16: [m] | J16: Formeln für Werkstoffkennwerte
B17: lpt2 = | C17: 1 | D17: [m] | J17: fcm = fck + 8 [N/mm2]
B18: αl = | C18: =MIN(m_lx/m_lpt2,1) -> 1 | D18: [-] | J18: fcd = αct · fck / γc
A19: σcp = NEd / Ac < 0,2 · fcd | J19: fctm = 0.3 · fck2/3
B20: NEd = | C20: 0 | D20: [kN] | J20: fctd = 0.7 · fctm · αct / γc
B21: Ac = | C21: 1800 | D21: [cm2] | J21: ρw,min = 0.16 · fctm / fyk
B22: σcp = | C22: =MIN(m_NEd*10/m_Ac,0.2*m_fcd) -> 0 | D22: [N/mm2]
B23: VRd,c = | C23: =(m_I/m_S*m_bw*SQRT(m_fctd*m_fctd+m_all*m_sigmacp*m_fctd)/10) -> 105.2159396 | D23: [kN] | J23: Mindestquerkraftbewehrung min asw
A24: VRd,c,min = (vmin + k1 · σcp) · bw · d | J24: ρw,min = | K24: =VLOOKUP(m_strfck,Werkstoffkennwerte,9,FALSE) -> 0.7073340477 | L24: [‰]
A25: vmin = κ1 / γc · (k3 · fck )1/2 | J25: b / h = | K25: =m_b/m_h -> 5.555555556 | L25: [-]
B26: κ1 = | C26: =IF(m_d<=60,0.0525,IF(m_d>=80,0.0375,0.0525-(m_d-60)*(0.0525-0.0375)/(80-60))) -> 0.0525 | D26: [-] | J26: min asw = ρw,min · bw · sin α
B27: k1 = | C27: 0.12 | D27: [-] | J27: min asw = | K27: =IF(m_bh<4,1,IF(m_bh>5,0,(1-(m_bh-4))))*m_rhowmin*m_bw*SIN(90*PI()/180)/10 -> 0 | L27: [cm2/m]
B28: d = | C28: 18 | D28: [cm]
A29: k = 1 + (200 / d)1/2 ≤ 2
B30: k = | C30: =MIN(1+SQRT(2000/m_d),2) -> 2 | D30: [-]
B31: vmin = | C31: =m_kappa1/m_gammac*SQRT(POWER(m_k,3)*m_fck) -> 0.4427188724 | D31: [N/mm2]
B32: VRd,c,min = | C32: =(m_vmin+m_k1*m_sigmacp)/10*m_bw*m_d -> 79.68939704 | D32: [kN]
A34: VEd ≤ VRd,c oder VEd ≤ VRd,c,min | D34: =IF(OR(m_VEd<=m_VRdc,m_VEd<=m_VRdcmin)," Nachweis wurde erfüllt!"," Nachweis wurde nicht erfüllt!") -> Nachweis wurde erfüllt!
